[Event "Early-Titled-Tuesday-Blitz-August-29-2023"]
[Site "Chess.com"]
[Date "2023.08.29"]
[Round "2"]
[White "SRob2003"]
[Black "MetiForce"]
[Result "1-0"]
[WhiteElo "2623"]
[BlackElo "2897"]
[TimeControl "180+1"]
[EndTime "8:18:50 PDT"]
[Termination "SRob2003 won on time"]

1. c4 {[%clk 0:02:53.5]} 1... e5 {[%clk 0:02:53.5]} 2. g3 {[%clk 0:02:53.7]}
2... Nf6 {[%clk 0:02:52.9]} 3. Bg2 {[%clk 0:02:54.3]} 3... d5 {[%clk 0:02:53.6]}
4. cxd5 {[%clk 0:02:55.2]} 4... Nxd5 {[%clk 0:02:54.5]} 5. Nf3 {[%clk
0:02:55.8]} 5... Nc6 {[%clk 0:02:54.4]} 6. O-O {[%clk 0:02:55.6]} 6... Be7
{[%clk 0:02:54.3]} 7. d4 {[%clk 0:02:55.8]} 7... e4 {[%clk 0:02:44.1]} 8. Ne5
{[%clk 0:02:55.4]} 8... f5 {[%clk 0:02:16.9]} 9. Nxc6 {[%clk 0:02:55.1]} 9...
bxc6 {[%clk 0:02:17.8]} 10. Qc2 {[%clk 0:02:55.8]} 10... Qd6 {[%clk 0:02:07.1]}
11. Nc3 {[%clk 0:02:55.5]} 11... Nb4 {[%clk 0:02:03.1]} 12. Qa4 {[%clk 0:02:55]}
12... O-O {[%clk 0:01:59.9]} 13. Bf4 {[%clk 0:02:49.1]} 13... Qd7 {[%clk
0:01:53.5]} 14. a3 {[%clk 0:02:43.9]} 14... Nd5 {[%clk 0:01:53.6]} 15. Nxd5
{[%clk 0:02:40.5]} 15... cxd5 {[%clk 0:01:50.6]} 16. Qxd7 {[%clk 0:02:40]} 16...
Bxd7 {[%clk 0:01:51.5]} 17. Bxc7 {[%clk 0:02:28.5]} 17... Bb5 {[%clk 0:01:51.2]}
18. Rfe1 {[%clk 0:02:20.8]} 18... Rac8 {[%clk 0:01:45.6]} 19. Rac1 {[%clk
0:02:20.4]} 19... Rf7 {[%clk 0:01:41.6]} 20. e3 {[%clk 0:01:19.2]} 20... Bxa3
{[%clk 0:01:40.3]} 21. Be5 {[%clk 0:01:20]} 21... Rxc1 {[%clk 0:01:25.5]} 22.
Rxc1 {[%clk 0:01:20.9]} 22... Bf8 {[%clk 0:01:16.2]} 23. Rc8 {[%clk 0:01:18.2]}
23... g6 {[%clk 0:01:06.3]} 24. Bh3 {[%clk 0:01:06.8]} 24... h5 {[%clk
0:01:02.8]} 25. Bf1 {[%clk 0:01:06.5]} 25... Bxf1 {[%clk 0:00:56.9]} 26. Kxf1
{[%clk 0:01:07.4]} 26... Rd7 {[%clk 0:00:57.2]} 27. Ra8 {[%clk 0:00:54.9]} 27...
g5 {[%clk 0:00:33]} 28. Ke1 {[%clk 0:00:50.6]} 28... Kf7 {[%clk 0:00:32.2]} 29.
Kd2 {[%clk 0:00:49.1]} 29... Bb4+ {[%clk 0:00:26.9]} 30. Kc2 {[%clk 0:00:49.1]}
30... Be1 {[%clk 0:00:25]} 31. Rh8 {[%clk 0:00:48]} 31... Kg6 {[%clk 0:00:22.5]}
32. Rg8+ {[%clk 0:00:42.1]} 32... Kh6 {[%clk 0:00:20.8]} 33. Kd1 {[%clk
0:00:33.6]} 33... Bxf2 {[%clk 0:00:20.3]} 34. Ke2 {[%clk 0:00:33.9]} 34... Bg1
{[%clk 0:00:20.8]} 35. h4 {[%clk 0:00:33.2]} 35... g4 {[%clk 0:00:16.9]} 36.
Bf4+ {[%clk 0:00:26.5]} 36... Kh7 {[%clk 0:00:16.9]} 37. Rb8 {[%clk 0:00:27.1]}
37... Kg6 {[%clk 0:00:11.1]} 38. Kf1 {[%clk 0:00:27.6]} 38... Bxe3 {[%clk
0:00:09.8]} 39. Bxe3 {[%clk 0:00:28.5]} 39... Rc7 {[%clk 0:00:10.6]} 40. Ke2
{[%clk 0:00:26.1]} 40... Rc2+ {[%clk 0:00:10.7]} 41. Bd2 {[%clk 0:00:26.7]}
41... f4 {[%clk 0:00:11.1]} 42. gxf4 {[%clk 0:00:26.7]} 42... Kf5 {[%clk
0:00:10.6]} 43. Rf8+ {[%clk 0:00:27]} 43... Ke6 {[%clk 0:00:10.9]} 44. Rh8
{[%clk 0:00:25.1]} 44... Rxb2 {[%clk 0:00:08.5]} 45. Rxh5 {[%clk 0:00:25.7]}
45... a5 {[%clk 0:00:07]} 46. Rh6+ {[%clk 0:00:25.7]} 46... Kf5 {[%clk
0:00:06.6]} 47. Rd6 {[%clk 0:00:19.9]} 47... g3 {[%clk 0:00:06.2]} 48. Rxd5+
{[%clk 0:00:18.8]} 48... Kg4 {[%clk 0:00:06.9]} 49. Rg5+ {[%clk 0:00:18.7]}
49... Kh3 {[%clk 0:00:06.6]} 50. h5 {[%clk 0:00:16.3]} 50... g2 {[%clk
0:00:06.7]} 51. h6 {[%clk 0:00:16.7]} 51... Kh2 {[%clk 0:00:02.4]} 52. h7 {[%clk
0:00:17.1]} 52... Rb8 {[%clk 0:00:02.7]} 53. Rh5+ {[%clk 0:00:10.7]} 1-0

[Event "Early-Titled-Tuesday-Blitz-August-29-2023"]
[Site "Chess.com"]
[Date "2023.08.29"]
[Round "2"]
[White "Jospem"]
[Black "Druid24"]
[Result "1-0"]
[WhiteElo "3050"]
[BlackElo "2659"]
[TimeControl "180+1"]
[EndTime "8:18:51 PDT"]
[Termination "Jospem won on time"]

1. e4 {[%clk 0:03:00.9]} 1... c6 {[%clk 0:03:00.2]} 2. d4 {[%clk 0:02:56.8]}
2... d5 {[%clk 0:03:00.7]} 3. e5 {[%clk 0:02:57.4]} 3... c5 {[%clk 0:03:01.1]}
4. dxc5 {[%clk 0:02:57.4]} 4... Nc6 {[%clk 0:03:00.2]} 5. Nf3 {[%clk 0:02:55.3]}
5... Bg4 {[%clk 0:02:56.6]} 6. c3 {[%clk 0:02:54]} 6... e6 {[%clk 0:02:48.1]} 7.
Be3 {[%clk 0:02:52.3]} 7... Bxf3 {[%clk 0:02:31.8]} 8. Qxf3 {[%clk 0:02:53.2]}
8... Nxe5 {[%clk 0:02:32.2]} 9. Bb5+ {[%clk 0:02:53.1]} 9... Nc6 {[%clk
0:02:32.8]} 10. c4 {[%clk 0:02:48.5]} 10... Nf6 {[%clk 0:02:27.8]} 11. Nc3
{[%clk 0:02:45.7]} 11... a6 {[%clk 0:02:21.5]} 12. Ba4 {[%clk 0:02:44.9]} 12...
Rc8 {[%clk 0:01:53]} 13. Rd1 {[%clk 0:02:22]} 13... Qa5 {[%clk 0:01:46]} 14. O-O
{[%clk 0:02:18.7]} 14... dxc4 {[%clk 0:01:39.1]} 15. Bd4 {[%clk 0:01:51.8]}
15... Bxc5 {[%clk 0:01:36.8]} 16. Bxf6 {[%clk 0:01:51.1]} 16... gxf6 {[%clk
0:01:37.7]} 17. Qxf6 {[%clk 0:01:42.7]} 17... Rg8 {[%clk 0:01:00.9]} 18. Qf4
{[%clk 0:01:26.1]} 18... Qc7 {[%clk 0:00:40.7]} 19. Qxc4 {[%clk 0:01:23.2]}
19... Bd6 {[%clk 0:00:37.5]} 20. Qh4 {[%clk 0:01:13]} 20... b5 {[%clk
0:00:19.5]} 21. Bxb5 {[%clk 0:01:01.5]} 21... axb5 {[%clk 0:00:19.4]} 22. Nxb5
{[%clk 0:01:02.4]} 22... Bxh2+ {[%clk 0:00:19.8]} 23. Qxh2 {[%clk 0:01:03.3]}
23... Qxh2+ {[%clk 0:00:19.8]} 24. Kxh2 {[%clk 0:01:04.2]} 24... Ke7 {[%clk
0:00:20.5]} 25. Rfe1 {[%clk 0:00:59.3]} 25... Rb8 {[%clk 0:00:19.9]} 26. a4
{[%clk 0:00:57.2]} 26... Rg4 {[%clk 0:00:20.5]} 27. b3 {[%clk 0:00:53.1]} 27...
Rb4 {[%clk 0:00:20.3]} 28. Re3 {[%clk 0:00:46.9]} 28... Na5 {[%clk 0:00:19.5]}
29. Rdd3 {[%clk 0:00:47]} 29... Rc8 {[%clk 0:00:17.1]} 30. Nd4 {[%clk
0:00:36.3]} 30... Rc5 {[%clk 0:00:13.6]} 31. Nf3 {[%clk 0:00:22.8]} 31... Rh5+
{[%clk 0:00:13.2]} 32. Kg1 {[%clk 0:00:23.1]} 32... Rc5 {[%clk 0:00:11.2]} 33.
g3 {[%clk 0:00:23.5]} 33... h5 {[%clk 0:00:10.4]} 34. Kg2 {[%clk 0:00:23.8]}
34... Rc2 {[%clk 0:00:10.2]} 35. Ne5 {[%clk 0:00:21.8]} 35... Rc7 {[%clk
0:00:07.8]} 36. Rf3 {[%clk 0:00:18.9]} 36... f6 {[%clk 0:00:07.4]} 37. Ng6+
{[%clk 0:00:19.5]} 37... Kf7 {[%clk 0:00:07.3]} 38. Nf4 {[%clk 0:00:20.1]} 38...
Nc6 {[%clk 0:00:06]} 39. Rc3 {[%clk 0:00:19.3]} 39... Rbb7 {[%clk 0:00:05.9]}
40. Nxh5 {[%clk 0:00:18.8]} 40... f5 {[%clk 0:00:05]} 41. Nf4 {[%clk 0:00:19.5]}
41... Ne5 {[%clk 0:00:04.2]} 42. Rxc7+ {[%clk 0:00:19.2]} 42... Rxc7 {[%clk
0:00:04.2]} 43. Re3 {[%clk 0:00:20.1]} 43... Ng4 {[%clk 0:00:04.6]} 44. Rxe6
{[%clk 0:00:19.7]} 44... Rc2 {[%clk 0:00:04.7]} 45. Re2 {[%clk 0:00:19.9]} 45...
Rc3 {[%clk 0:00:04.7]} 46. Rb2 {[%clk 0:00:19.7]} 46... Ne5 {[%clk 0:00:03.3]}
47. a5 {[%clk 0:00:19.3]} 47... Nc6 {[%clk 0:00:03.2]} 48. a6 {[%clk 0:00:17.9]}
48... Na7 {[%clk 0:00:02.9]} 49. b4 {[%clk 0:00:18]} 49... Rc6 {[%clk
0:00:03.6]} 50. b5 {[%clk 0:00:16.9]} 50... Rb6 {[%clk 0:00:04.2]} 51. Nd5
{[%clk 0:00:17]} 51... Rxb5 {[%clk 0:00:04.6]} 52. Rxb5 {[%clk 0:00:17.2]} 52...
Nxb5 {[%clk 0:00:05.5]} 53. Nc3 {[%clk 0:00:15.8]} 53... Na7 {[%clk 0:00:04.9]}
54. Kf3 {[%clk 0:00:16.3]} 54... Ke6 {[%clk 0:00:05.3]} 55. Kf4 {[%clk
0:00:16.8]} 55... Nc6 {[%clk 0:00:04.7]} 56. Kg5 {[%clk 0:00:15.1]} 56... Ke5
{[%clk 0:00:04.6]} 57. Nb5 {[%clk 0:00:14.9]} 1-0

[Event "Early-Titled-Tuesday-Blitz-August-29-2023"]
[Site "Chess.com"]
[Date "2023.08.29"]
[Round "2"]
[White "Iunusovnuriddin"]
[Black "CrazyAdvenTures"]
[Result "1/2-1/2"]
[WhiteElo "2305"]
[BlackElo "2696"]
[TimeControl "180+1"]
[EndTime "8:18:51 PDT"]
[Termination "Game drawn by repetition"]

1. e4 {[%clk 0:03:00]} 1... e5 {[%clk 0:02:58.8]} 2. Nf3 {[%clk 0:03:00.2]} 2...
Nc6 {[%clk 0:02:59]} 3. Nc3 {[%clk 0:03:00.8]} 3... Nf6 {[%clk 0:02:58.1]} 4. d4
{[%clk 0:03:01.1]} 4... exd4 {[%clk 0:02:54.6]} 5. Nxd4 {[%clk 0:03:02]} 5...
Bc5 {[%clk 0:02:44.6]} 6. Be3 {[%clk 0:02:52.9]} 6... Bb6 {[%clk 0:02:42]} 7.
Be2 {[%clk 0:02:37.4]} 7... O-O {[%clk 0:02:40.3]} 8. O-O {[%clk 0:02:37.2]}
8... Re8 {[%clk 0:02:40.1]} 9. Nxc6 {[%clk 0:02:31]} 9... bxc6 {[%clk 0:02:41]}
10. Bxb6 {[%clk 0:02:31.5]} 10... axb6 {[%clk 0:02:41.9]} 11. Bf3 {[%clk
0:02:31.8]} 11... d6 {[%clk 0:02:38.8]} 12. e5 {[%clk 0:02:29.3]} 12... Rxe5
{[%clk 0:02:38.6]} 13. Bxc6 {[%clk 0:02:29.6]} 13... Rb8 {[%clk 0:02:34.3]} 14.
h3 {[%clk 0:01:49]} 14... Bf5 {[%clk 0:02:21.6]} 15. Re1 {[%clk 0:01:31.4]}
15... Rxe1+ {[%clk 0:01:56]} 16. Qxe1 {[%clk 0:01:32.1]} 16... Bxc2 {[%clk
0:01:50.4]} 17. Rc1 {[%clk 0:01:31.8]} 17... Bf5 {[%clk 0:01:50.6]} 18. Nb5
{[%clk 0:01:07.4]} 18... Be6 {[%clk 0:01:44.2]} 19. a4 {[%clk 0:00:45.3]} 19...
d5 {[%clk 0:01:21.4]} 20. Qe5 {[%clk 0:00:44.2]} 20... Rc8 {[%clk 0:01:06.5]}
21. Na7 {[%clk 0:00:41]} 21... Rb8 {[%clk 0:01:02]} 22. Nb5 {[%clk 0:00:41.5]}
22... Qe7 {[%clk 0:00:21.9]} 23. Qxc7 {[%clk 0:00:27.3]} 23... Qf8 {[%clk
0:00:20.9]} 24. Qd6 {[%clk 0:00:23.4]} 24... Qc8 {[%clk 0:00:16.4]} 25. Rc3
{[%clk 0:00:20.5]} 25... Ne4 {[%clk 0:00:16]} 26. Bxd5 {[%clk 0:00:15.7]} 26...
Nxc3 {[%clk 0:00:15.5]} 27. Nxc3 {[%clk 0:00:15.5]} 27... Bxd5 {[%clk
0:00:10.2]} 28. Nxd5 {[%clk 0:00:16.4]} 28... Qf8 {[%clk 0:00:11]} 29. Qg3
{[%clk 0:00:12.4]} 29... Qd8 {[%clk 0:00:06.1]} 30. Nc3 {[%clk 0:00:12.2]} 30...
h6 {[%clk 0:00:05.5]} 31. b4 {[%clk 0:00:12.2]} 31... Rc8 {[%clk 0:00:05.9]} 32.
Nb5 {[%clk 0:00:12.5]} 32... Qd1+ {[%clk 0:00:05.5]} 33. Kh2 {[%clk 0:00:13]}
33... Rc1 {[%clk 0:00:05.7]} 34. Qb8+ {[%clk 0:00:12.5]} 34... Kh7 {[%clk
0:00:06.1]} 35. a5 {[%clk 0:00:11.2]} 35... Qg1+ {[%clk 0:00:04.5]} 36. Kg3
{[%clk 0:00:11.7]} 36... bxa5 {[%clk 0:00:05.4]} 37. bxa5 {[%clk 0:00:11.1]}
37... Rb1 {[%clk 0:00:06.3]} 38. a6 {[%clk 0:00:10.8]} 38... Qf1 {[%clk
0:00:03.7]} 39. a7 {[%clk 0:00:10.6]} 39... Rxb5 {[%clk 0:00:04.3]} 40. a8=Q
{[%clk 0:00:09.9]} 40... Qd3+ {[%clk 0:00:04.9]} 41. Kh2 {[%clk 0:00:09.9]}
41... Rxb8 {[%clk 0:00:05.8]} 42. Qxb8 {[%clk 0:00:10.7]} 42... Qf5 {[%clk
0:00:06.1]} 43. Qg3 {[%clk 0:00:11]} 43... g5 {[%clk 0:00:06.5]} 44. Qe3 {[%clk
0:00:09.8]} 44... Kg6 {[%clk 0:00:06.5]} 45. g4 {[%clk 0:00:10]} 45... Qd5
{[%clk 0:00:05.6]} 46. Kg3 {[%clk 0:00:09.6]} 46... f6 {[%clk 0:00:05.5]} 47. f3
{[%clk 0:00:09.7]} 47... Qd6+ {[%clk 0:00:05.9]} 48. Kg2 {[%clk 0:00:10]} 48...
Qb8 {[%clk 0:00:06.1]} 49. Qe4+ {[%clk 0:00:10.5]} 49... Kg7 {[%clk 0:00:06.6]}
50. Qe7+ {[%clk 0:00:10.2]} 50... Kg6 {[%clk 0:00:07.1]} 51. Qe4+ {[%clk
0:00:10.7]} 51... Kg7 {[%clk 0:00:06.8]} 52. Qe7+ {[%clk 0:00:11.1]} 52... Kg6
{[%clk 0:00:07.5]} 53. Qe4+ {[%clk 0:00:11]} 1/2-1/2

[Event "Early-Titled-Tuesday-Blitz-August-29-2023"]
[Site "Chess.com"]
[Date "2023.08.29"]
[Round "2"]
[White "ChesscularGodofchess"]
[Black "topin8"]
[Result "0-1"]
[WhiteElo "2179"]
[BlackElo "2466"]
[TimeControl "180+1"]
[EndTime "8:18:52 PDT"]
[Termination "topin8 won by checkmate"]

1. d4 {[%clk 0:02:59.5]} 1... Nf6 {[%clk 0:02:59.8]} 2. Nf3 {[%clk 0:02:59]}
2... c5 {[%clk 0:02:57.7]} 3. e3 {[%clk 0:02:58.9]} 3... g6 {[%clk 0:02:56.6]}
4. Nbd2 {[%clk 0:02:55.5]} 4... Bg7 {[%clk 0:02:56.9]} 5. c3 {[%clk 0:02:42.1]}
5... O-O {[%clk 0:02:50.1]} 6. dxc5 {[%clk 0:02:37.2]} 6... Qc7 {[%clk
0:02:50.1]} 7. b4 {[%clk 0:02:35.2]} 7... a5 {[%clk 0:02:50.1]} 8. Bb2 {[%clk
0:02:33.6]} 8... Nc6 {[%clk 0:01:19.7]} 9. a3 {[%clk 0:02:11.5]} 9... b6 {[%clk
0:01:20]} 10. cxb6 {[%clk 0:02:06.3]} 10... Qxb6 {[%clk 0:01:20.9]} 11. Bc4
{[%clk 0:01:59.3]} 11... d5 {[%clk 0:01:19.9]} 12. Be2 {[%clk 0:01:54.8]} 12...
Ne4 {[%clk 0:01:05.6]} 13. Nxe4 {[%clk 0:01:51.7]} 13... dxe4 {[%clk 0:01:06.5]}
14. Nd4 {[%clk 0:01:51.1]} 14... Bb7 {[%clk 0:00:38.8]} 15. O-O {[%clk
0:01:48.2]} 15... Ne5 {[%clk 0:00:36.5]} 16. Qb3 {[%clk 0:01:34.5]} 16... a4
{[%clk 0:00:28.4]} 17. Qc2 {[%clk 0:01:31.4]} 17... Rfc8 {[%clk 0:00:19.7]} 18.
c4 {[%clk 0:01:24.4]} 18... Nxc4 {[%clk 0:00:15.5]} 19. Bxc4 {[%clk 0:01:24.5]}
19... Bd5 {[%clk 0:00:14.3]} 20. Rac1 {[%clk 0:00:27.1]} 20... Rxc4 {[%clk
0:00:14.2]} 21. Qd2 {[%clk 0:00:23]} 21... Rac8 {[%clk 0:00:13.3]} 22. Rxc4
{[%clk 0:00:22]} 22... Rxc4 {[%clk 0:00:13.5]} 23. Rc1 {[%clk 0:00:21.9]} 23...
h5 {[%clk 0:00:09.5]} 24. Rxc4 {[%clk 0:00:20]} 24... Bxc4 {[%clk 0:00:10.4]}
25. h3 {[%clk 0:00:17.1]} 25... Bd5 {[%clk 0:00:02.2]} 26. Qc2 {[%clk
0:00:16.8]} 26... Qa6 {[%clk 0:00:01.7]} 27. Qc5 {[%clk 0:00:13.7]} 27... e6
{[%clk 0:00:01.6]} 28. b5 {[%clk 0:00:12.1]} 28... Qb7 {[%clk 0:00:02.1]} 29.
Bc3 {[%clk 0:00:10.7]} 29... Kh7 {[%clk 0:00:01]} 30. Bb4 {[%clk 0:00:10.8]}
30... h4 {[%clk 0:00:01.4]} 31. Qe7 {[%clk 0:00:10.4]} 31... Bxd4 {[%clk
0:00:01.7]} 32. Qxh4+ {[%clk 0:00:10]} 32... Kg7 {[%clk 0:00:01.5]} 33. exd4
{[%clk 0:00:09.8]} 33... Qxb5 {[%clk 0:00:02]} 34. Bd6 {[%clk 0:00:06]} 34... f6
{[%clk 0:00:02.2]} 35. Be7 {[%clk 0:00:04.9]} 35... g5 {[%clk 0:00:02.7]} 36.
Qh5 {[%clk 0:00:03.9]} 36... Qd7 {[%clk 0:00:03.2]} 37. Bc5 {[%clk 0:00:03.9]}
37... Qf7 {[%clk 0:00:03.2]} 38. Qe2 {[%clk 0:00:03.9]} 38... Qd7 {[%clk
0:00:03.2]} 39. Qa6 {[%clk 0:00:04.1]} 39... Bb3 {[%clk 0:00:02.7]} 40. Qb6
{[%clk 0:00:05]} 40... f5 {[%clk 0:00:01.9]} 41. Qb4 {[%clk 0:00:04.6]} 41...
Kg6 {[%clk 0:00:01.4]} 42. Qc3 {[%clk 0:00:05.1]} 42... f4 {[%clk 0:00:01.7]}
43. Qb4 {[%clk 0:00:04.8]} 43... Qd5 {[%clk 0:00:02]} 44. Qb8 {[%clk 0:00:04.8]}
44... Qd7 {[%clk 0:00:01.9]} 45. Qg8+ {[%clk 0:00:04.9]} 45... Qg7 {[%clk
0:00:02.2]} 46. Qe8+ {[%clk 0:00:04.8]} 46... Qf7 {[%clk 0:00:02.4]} 47. Qc6
{[%clk 0:00:04.2]} 47... e3 {[%clk 0:00:02]} 48. fxe3 {[%clk 0:00:02.3]} 48...
fxe3 {[%clk 0:00:02.2]} 49. Qe4+ {[%clk 0:00:02.6]} 49... Qf5 {[%clk 0:00:02.3]}
50. Qxe3 {[%clk 0:00:03.3]} 50... Qb1+ {[%clk 0:00:02.6]} 51. Kh2 {[%clk
0:00:03.5]} 51... Qf5 {[%clk 0:00:03.5]} 52. g3 {[%clk 0:00:02.8]} 52... Bd5
{[%clk 0:00:03.7]} 53. Qe5 {[%clk 0:00:01.9]} 53... Qc2+ {[%clk 0:00:04]} 54.
Kg1 {[%clk 0:00:01.2]} 54... Qg2# {[%clk 0:00:04.5]} 0-1

[Event "Early-Titled-Tuesday-Blitz-August-29-2023"]
[Site "Chess.com"]
[Date "2023.08.29"]
[Round "2"]
[White "GiorgianBarbosa"]
[Black "sokidze"]
[Result "1-0"]
[WhiteElo "2450"]
[BlackElo "2771"]
[TimeControl "180+1"]
[EndTime "8:18:53 PDT"]
[Termination "GiorgianBarbosa won on time"]

1. c4 {[%clk 0:03:00.4]} 1... c5 {[%clk 0:02:57.7]} 2. g3 {[%clk 0:02:57.6]}
2... Nc6 {[%clk 0:02:53.7]} 3. Bg2 {[%clk 0:02:57.9]} 3... g6 {[%clk 0:02:54.4]}
4. Nc3 {[%clk 0:02:57.7]} 4... Bg7 {[%clk 0:02:54.7]} 5. e3 {[%clk 0:02:58.1]}
5... e5 {[%clk 0:02:52.8]} 6. Nge2 {[%clk 0:02:58.3]} 6... Nge7 {[%clk 0:02:53]}
7. O-O {[%clk 0:02:56]} 7... O-O {[%clk 0:02:52.6]} 8. b3 {[%clk 0:02:52.1]}
8... d6 {[%clk 0:02:51]} 9. Bb2 {[%clk 0:02:50.9]} 9... Be6 {[%clk 0:02:46.4]}
10. Nd5 {[%clk 0:02:50.4]} 10... Rb8 {[%clk 0:02:41.4]} 11. Nec3 {[%clk
0:02:49.5]} 11... a6 {[%clk 0:02:39.1]} 12. d3 {[%clk 0:02:48.1]} 12... b5
{[%clk 0:02:38.1]} 13. Qd2 {[%clk 0:02:46.5]} 13... f5 {[%clk 0:02:29.4]} 14.
Nxe7+ {[%clk 0:02:36.9]} 14... Nxe7 {[%clk 0:02:28.9]} 15. Nd5 {[%clk
0:02:37.5]} 15... Nxd5 {[%clk 0:02:13.5]} 16. cxd5 {[%clk 0:02:32.9]} 16... Bd7
{[%clk 0:02:11.7]} 17. f4 {[%clk 0:02:22.1]} 17... Qe7 {[%clk 0:01:54]} 18. Rae1
{[%clk 0:02:20.3]} 18... Rbe8 {[%clk 0:01:53.3]} 19. e4 {[%clk 0:02:02.3]} 19...
Qd8 {[%clk 0:01:17]} 20. h3 {[%clk 0:01:55.2]} 20... fxe4 {[%clk 0:01:01.6]} 21.
dxe4 {[%clk 0:01:54.5]} 21... Rf7 {[%clk 0:00:50.1]} 22. fxe5 {[%clk 0:01:45.3]}
22... Rxf1+ {[%clk 0:00:44]} 23. Rxf1 {[%clk 0:01:45.8]} 23... Bxe5 {[%clk
0:00:44.7]} 24. Bxe5 {[%clk 0:01:46.2]} 24... Rxe5 {[%clk 0:00:45.6]} 25. Qf4
{[%clk 0:01:45.5]} 25... Qe7 {[%clk 0:00:45.5]} 26. Kh2 {[%clk 0:01:45.8]} 26...
g5 {[%clk 0:00:28.3]} 27. Qd2 {[%clk 0:01:33.5]} 27... Be8 {[%clk 0:00:12.4]}
28. Rf2 {[%clk 0:01:31.1]} 28... Bg6 {[%clk 0:00:11.7]} 29. Re2 {[%clk 0:00:59]}
29... Kg7 {[%clk 0:00:11.3]} 30. Qa5 {[%clk 0:00:55.1]} 30... Bxe4 {[%clk
0:00:09.9]} 31. Qxa6 {[%clk 0:00:53.2]} 31... Bxg2 {[%clk 0:00:06.9]} 32. Rxg2
{[%clk 0:00:53.6]} 32... b4 {[%clk 0:00:05.4]} 33. Qc4 {[%clk 0:00:50.5]} 33...
Re4 {[%clk 0:00:04.5]} 34. Qc1 {[%clk 0:00:50.6]} 34... Qe5 {[%clk 0:00:04.2]}
35. Qd2 {[%clk 0:00:45.3]} 35... Rd4 {[%clk 0:00:03.7]} 36. Qf2 {[%clk
0:00:31.5]} 36... Qxd5 {[%clk 0:00:02.9]} 37. Qe2 {[%clk 0:00:31.1]} 37... Re4
{[%clk 0:00:02.7]} 38. Qa6 {[%clk 0:00:29.8]} 38... Qe6 {[%clk 0:00:02.4]} 39.
Qa7+ {[%clk 0:00:28.7]} 39... Qe7 {[%clk 0:00:02.6]} 40. Qa6 {[%clk 0:00:28]}
40... Re5 {[%clk 0:00:02.8]} 41. Rf2 {[%clk 0:00:26.9]} 41... d5 {[%clk
0:00:02.2]} 42. Qf1 {[%clk 0:00:23.5]} 42... d4 {[%clk 0:00:02.1]} 43. Qd3
{[%clk 0:00:23.9]} 43... h6 {[%clk 0:00:02.3]} 44. Qa6 {[%clk 0:00:22.5]} 44...
Re6 {[%clk 0:00:02.4]} 45. Qd3 {[%clk 0:00:21.4]} 45... Re3 {[%clk 0:00:02.5]}
46. Qc4 {[%clk 0:00:20.3]} 46... Re4 {[%clk 0:00:02.3]} 47. Qa6 {[%clk
0:00:19.8]} 47... Re6 {[%clk 0:00:02.6]} 48. Qc4 {[%clk 0:00:19.8]} 48... Rf6
{[%clk 0:00:03.5]} 49. Re2 {[%clk 0:00:19.4]} 49... Qc7 {[%clk 0:00:01.8]} 50.
Qd5 {[%clk 0:00:16.8]} 50... Rf8 {[%clk 0:00:01.6]} 51. Re6 {[%clk 0:00:15.4]}
51... Rd8 {[%clk 0:00:01.8]} 52. Qe4 {[%clk 0:00:15.8]} 52... d3 {[%clk
0:00:01.8]} 53. Qg6+ {[%clk 0:00:14.6]} 53... Kf8 {[%clk 0:00:02.2]} 54. Rf6+
{[%clk 0:00:14.6]} 54... Ke7 {[%clk 0:00:02.3]} 55. Rf7+ {[%clk 0:00:15]} 1-0

[Event "Early-Titled-Tuesday-Blitz-August-29-2023"]
[Site "Chess.com"]
[Date "2023.08.29"]
[Round "2"]
[White "Goffredo_Fofi"]
[Black "GMKrikor"]
[Result "0-1"]
[WhiteElo "2564"]
[BlackElo "2864"]
[TimeControl "180+1"]
[EndTime "8:18:56 PDT"]
[Termination "GMKrikor won on time"]

1. g3 {[%clk 0:03:00.9]} 1... d5 {[%clk 0:02:57]} 2. Bg2 {[%clk 0:03:01.2]} 2...
Nc6 {[%clk 0:02:57.4]} 3. c3 {[%clk 0:02:55.4]} 3... e5 {[%clk 0:02:57]} 4. d4
{[%clk 0:02:55.9]} 4... Nf6 {[%clk 0:02:53.6]} 5. Bg5 {[%clk 0:02:52.3]} 5...
Be6 {[%clk 0:02:44.1]} 6. Nf3 {[%clk 0:02:35.4]} 6... h6 {[%clk 0:02:36.7]} 7.
Bxf6 {[%clk 0:02:34.2]} 7... Qxf6 {[%clk 0:02:37.6]} 8. Qa4 {[%clk 0:02:22.6]}
8... exd4 {[%clk 0:02:24.3]} 9. cxd4 {[%clk 0:02:20.8]} 9... Bd6 {[%clk
0:02:19.8]} 10. Nc3 {[%clk 0:02:20]} 10... O-O {[%clk 0:02:19.3]} 11. O-O {[%clk
0:02:20.1]} 11... a6 {[%clk 0:02:19.5]} 12. Rac1 {[%clk 0:02:13.8]} 12... Ne7
{[%clk 0:02:15.7]} 13. e4 {[%clk 0:02:02.3]} 13... dxe4 {[%clk 0:01:49]} 14.
Nxe4 {[%clk 0:02:02.1]} 14... Qf5 {[%clk 0:01:49.1]} 15. Nxd6 {[%clk 0:02:01.9]}
15... cxd6 {[%clk 0:01:48.9]} 16. Rc7 {[%clk 0:01:49]} 16... b5 {[%clk
0:01:37.1]} 17. Qa3 {[%clk 0:01:37.4]} 17... Nd5 {[%clk 0:01:21.4]} 18. Rc6
{[%clk 0:01:36]} 18... b4 {[%clk 0:01:18.7]} 19. Qa5 {[%clk 0:01:34.6]} 19...
Ne7 {[%clk 0:00:46]} 20. Qxf5 {[%clk 0:01:08.1]} 20... Nxf5 {[%clk 0:00:46]} 21.
Rc7 {[%clk 0:00:49.9]} 21... Bxa2 {[%clk 0:00:41]} 22. Nh4 {[%clk 0:00:43]}
22... Nxd4 {[%clk 0:00:35.8]} 23. Bxa8 {[%clk 0:00:42.7]} 23... Rxa8 {[%clk
0:00:36.7]} 24. Rd1 {[%clk 0:00:40.7]} 24... Nb5 {[%clk 0:00:33.6]} 25. Rb7
{[%clk 0:00:32.8]} 25... Be6 {[%clk 0:00:26.6]} 26. Nf3 {[%clk 0:00:24.9]} 26...
Bg4 {[%clk 0:00:26.2]} 27. Rd3 {[%clk 0:00:24.9]} 27... Rc8 {[%clk 0:00:20.9]}
28. Kg2 {[%clk 0:00:15.6]} 28... Bf5 {[%clk 0:00:18.9]} 29. Rd2 {[%clk 0:00:15]}
29... Be4 {[%clk 0:00:19.2]} 30. Re7 {[%clk 0:00:14.1]} 30... Ba8 {[%clk
0:00:17.6]} 31. Re3 {[%clk 0:00:11.4]} 31... g5 {[%clk 0:00:17]} 32. g4 {[%clk
0:00:11.1]} 32... a5 {[%clk 0:00:16.2]} 33. Kg3 {[%clk 0:00:11]} 33... a4 {[%clk
0:00:16.5]} 34. Nd4 {[%clk 0:00:10.9]} 34... Na7 {[%clk 0:00:06.7]} 35. Nf5
{[%clk 0:00:10.5]} 35... Kf8 {[%clk 0:00:05.9]} 36. Nxd6 {[%clk 0:00:09]} 36...
Rd8 {[%clk 0:00:06.6]} 37. Nc4 {[%clk 0:00:09.2]} 37... Rb8 {[%clk 0:00:06.9]}
38. Ne5 {[%clk 0:00:07.9]} 38... Kg7 {[%clk 0:00:05.8]} 39. Rd7 {[%clk
0:00:06.9]} 39... Nb5 {[%clk 0:00:05.7]} 40. Rxf7+ {[%clk 0:00:07.2]} 40... Kg8
{[%clk 0:00:06.3]} 41. Rf6 {[%clk 0:00:04.5]} 41... Nd4 {[%clk 0:00:06]} 42. Nd7
{[%clk 0:00:04]} 42... Rd8 {[%clk 0:00:05.2]} 43. Re7 {[%clk 0:00:03.1]} 43...
Nc6 {[%clk 0:00:03.9]} 44. Rg6+ {[%clk 0:00:03.2]} 44... Kh8 {[%clk 0:00:03.6]}
45. Rxh6+ {[%clk 0:00:03.7]} 45... Kg8 {[%clk 0:00:04.2]} 46. Nf6+ {[%clk
0:00:04.1]} 46... Kf8 {[%clk 0:00:04.8]} 47. Reh7 {[%clk 0:00:04.3]} 47... Ne5
{[%clk 0:00:04.6]} 48. Rh8+ {[%clk 0:00:04]} 48... Ke7 {[%clk 0:00:04.8]} 49.
Rxd8 {[%clk 0:00:03.8]} 49... Kxd8 {[%clk 0:00:05.7]} 50. Nh7 {[%clk 0:00:03.3]}
50... a3 {[%clk 0:00:04.3]} 51. bxa3 {[%clk 0:00:03.4]} 51... b3 {[%clk
0:00:03.8]} 52. Rb6 {[%clk 0:00:03.9]} 52... Bd5 {[%clk 0:00:04.3]} 53. Nxg5
{[%clk 0:00:03.8]} 53... Kc7 {[%clk 0:00:03.3]} 54. Rb4 {[%clk 0:00:02.9]} 54...
Nc6 {[%clk 0:00:03.2]} 55. Rb5 {[%clk 0:00:03]} 55... Bc4 {[%clk 0:00:03.9]} 0-1